[Event "WYCC 2018 G18"]
[Site "Halkidiki"]
[Date "2018.10.29"]
[Round "10"]
[White "Du, Yuxin"]
[Black "Perminaite, Guoda"]
[Result "1/2-1/2"]
[ECO "C54"]
[WhiteElo "2011"]
[BlackElo "1840"]
[Annotator "NA"]
[PlyCount "116"]
[EventDate "2018.10.20"]
[EventType "swiss"]
[EventCountry "GRE"]
[SourceTitle "playchess.com"]
[Source "ChessBase"]
[SourceQuality "1"]
[TimeControl "40/5400+30:1800+30"]

1. e4 {[%emt 0:00:00]} e5 {[%emt 0:00:00]} 2. Nf3 {[%emt 0:00:00]} Nc6 {[%emt 0:00:00]} 3. Bc4 {[%emt 0:00:27]} Bc5 {[%emt 0:00:00]} 4. c3 {[%emt 0:00:08]} Nf6 {[%emt 0:00:00]} 5. d4 {[%emt 0:00:06]} exd4 {[%emt 0:00:00]} 6. e5 {[%emt 0:00:05]} d5 {[%emt 0:00:10]} 7. Bb5 {[%emt 0:00:06]} Ne4 {[%emt 0:00:12]} 8. cxd4 {[%emt 0:00:16]} Bb6 {[%emt 0:00:14]} 9. Nc3 {[%emt 0:00:46]} O-O {[%emt 0:00:31]} 10. Be3 {[%emt 0:00:48]} Bg4 {[%emt 0:01:18]} 11. h3 {[%emt 0:00:36]} Bh5 {[%emt 0:00:42]} 12. Qc2 {[%emt 0:00:52]} Bg6 {[%emt 0:01:54]} 13. Qb3 {[%emt 0:03:34]} Ne7 {[%emt 0:01:13]} 14. Nh4 {[%emt 0:07:03]} c6 {[%emt 0:09:51]} 15. Nxg6 {[%emt 0:13:05]} hxg6 {[%emt 0:02:29]} 16. Bd3 {[%emt 0:01:23]} Nxc3 {[%emt 0:09:10]} 17. bxc3 {[%emt 0:02:37]} Nf5 {[%emt 0:01:39]} 18. Bxf5 {[%emt 0:20:58]} gxf5 {[%emt 0:00:11]} 19. Qc2 {[%emt 0:13:51]} Qd7 {[%emt 0:03:13]} 20. f4 {[%emt 0:26:13]} f6 {[%emt 0:05:33]} 21. O-O {[%emt 0:01:12]} Rac8 {[%emt 0:04:44]} 22. Qf2 {[%emt 0:01:47]} Kf7 {[%emt 0:02:23]} 23. Rae1 {[%emt 0:02:03]} Rh8 {[%emt 0:01:34]} 24. Bc1 {[%emt 0:00:55]} Rce8 {[%emt 0:02:47]} 25. Ba3 {[%emt 0:01:14]} g6 {[%emt 0:07:19]} 26. Re2 {[%emt 0:01:57]} fxe5 {[%emt 0:04:54]} 27. fxe5 {[%emt 0:00:10]} Ke6 {[%emt 0:06:20]} 28. Qf4 {[%emt 0:01:07]} Qh7 {[%emt 0:02:32]} 29. Ref2 {[%emt 0:00:37]} Bd8 {[%emt 0:02:39]} 30. Qd2 {[%emt 0:00:29]} Be7 {[%emt 0:03:37]} 31. Bc1 {[%emt 0:00:27]} Ref8 {[%emt 0:02:20]} 32. Qb2 {[%emt 0:00:34]} b6 {[%emt 0:02:45]} 33. Qc2 {[%emt 0:00:24]} Bd8 {[%emt 0:01:15]} 34. Qa4 {[%emt 0:00:34]} Qb7 {[%emt 0:01:41]} 35. Rf3 {[%emt 0:00:25]} g5 {[%emt 0:07:09]} 36. Rxf5 {[%emt 0:00:35]} Rxf5 {[%emt 0:05:26]} 37. Rxf5 {[%emt 0:00:06]} b5 {[%emt 0:02:01]} 38. Qd1 {[%emt 0:00:36]} Qh7 {[%emt 0:00:20]} 39. Rf1 {[%emt 0:00:47]} Qe4 {[%emt 0:01:02]} 40. Qf3 {[%emt 0:00:00]} Qxf3 {[%emt 0:00:00]} 41. Rxf3 {[%emt 0:00:36]} Be7 {[%emt 0:01:32]} 42. Be3 {[%emt 0:10:10]} Rc8 {[%emt 0:01:53]} 43. Kf1 {[%emt 0:03:21]} a5 {[%emt 0:02:30]} 44. Ke2 {[%emt 0:05:04]} c5 {[%emt 0:04:05]} 45. dxc5 {[%emt 0:00:31]} Kxe5 {[%emt 0:01:58]} 46. Kd3 {[%emt 0:05:01]} g4 {[%emt 0:02:07]} 47. Bd4+ {[%emt 0:01:59]} Ke6 {[%emt 0:00:19]} 48. Re3+ {[%emt 0:00:17]} Kf7 {[%emt 0:01:28]} 49. Re5 {[%emt 0:02:40]} gxh3 {[%emt 0:03:59]} 50. gxh3 {[%emt 0:00:05]} Bxc5 {[%emt 0:01:19]} 51. Rxd5 {[%emt 0:00:10]} Bxd4 {[%emt 0:00:34]} 52. cxd4 {[%emt 0:00:35]} Rh8 {[%emt 0:00:44]} 53. Rxb5 {[%emt 0:02:03]} Rxh3+ {[%emt 0:00:08]} 54. Kc4 {[%emt 0:02:02]} Ra3 {[%emt 0:00:23]} 55. Rb2 {[%emt 0:00:12]} Ke7 {[%emt 0:00:41]} 56. Rd2 {[%emt 0:02:01]} Kd6 {[%emt 0:00:53]} 57. d5 {[%emt 0:00:39]} Ra4+ {[%emt 0:02:38]} 58. Kb5 {[%emt 0:00:42]} Ra3 1/2-1/2

[Event "WYCC 2018 G18"]
[Site "Halkidiki"]
[Date "2018.10.29"]
[Round "10"]
[White "Priyanka, Kumari"]
[Black "Gillis Onieva, Celia"]
[Result "1/2-1/2"]
[ECO "B35"]
[WhiteElo "2005"]
[BlackElo "1892"]
[Annotator "NA"]
[PlyCount "110"]
[EventDate "2018.10.20"]
[EventType "swiss"]
[EventCountry "GRE"]
[SourceTitle "playchess.com"]
[Source "ChessBase"]
[SourceQuality "1"]
[TimeControl "40/5400+30:1800+30"]

1. e4 {[%emt 0:00:01]} c5 {[%emt 0:00:00]} 2. Nf3 {[%emt 0:00:10]} Nc6 {[%emt 0:00:00]} 3. d4 {[%emt 0:00:13]} cxd4 {[%emt 0:00:05]} 4. Nxd4 {[%emt 0:00:11]} g6 {[%emt 0:00:13]} 5. Nc3 {[%emt 0:00:20]} Bg7 {[%emt 0:00:12]} 6. Be3 {[%emt 0:00:16]} Nf6 {[%emt 0:00:18]} 7. Bc4 {[%emt 0:00:32]} O-O {[%emt 0:00:22]} 8. Bb3 {[%emt 0:00:10]} a5 {[%emt 0:00:52]} 9. O-O {[%emt 0:01:36]} Nxd4 {[%emt 0:00:32]} 10. Bxd4 {[%emt 0:02:33]} d6 {[%emt 0:00:28]} 11. Re1 {[%emt 0:04:12]} Bd7 {[%emt 0:01:00]} 12. a4 {[%emt 0:00:42]} Bc6 {[%emt 0:02:47]} 13. Qd3 {[%emt 0:06:01]} Nd7 {[%emt 0:02:59]} 14. Bxg7 {[%emt 0:07:49]} Kxg7 {[%emt 0:00:08]} 15. Rad1 {[%emt 0:00:47]} Qb6 {[%emt 0:17:02]} 16. Nd5 {[%emt 0:12:30]} Bxd5 {[%emt 0:00:39]} 17. exd5 {[%emt 0:00:35]} Rfe8 {[%emt 0:04:39]} 18. Qd4+ {[%emt 0:03:54]} Qxd4 {[%emt 0:01:09]} 19. Rxd4 {[%emt 0:00:05]} Nc5 {[%emt 0:04:54]} 20. Bc4 {[%emt 0:02:24]} Rec8 {[%emt 0:11:45]} 21. Bb5 {[%emt 0:09:40]} Rc7 {[%emt 0:00:42]} 22. Kf1 {[%emt 0:01:28]} Rac8 {[%emt 0:03:14]} 23. c3 {[%emt 0:03:45]} Kf8 {[%emt 0:03:24]} 24. Re3 {[%emt 0:02:30]} Nd7 {[%emt 0:06:23]} 25. Ke2 {[%emt 0:06:02]} Nf6 {[%emt 0:14:29]} 26. Red3 {[%emt 0:04:30]} Rc5 {[%emt 0:02:02]} 27. Kd2 {[%emt 0:02:26]} R8c7 {[%emt 0:00:59]} 28. Kc2 {[%emt 0:01:30]} Kg7 {[%emt 0:04:23]} 29. Rd2 {[%emt 0:00:44]} Rc8 {[%emt 0:00:39]} 30. f3 {[%emt 0:00:39]} h5 {[%emt 0:01:49]} 31. h4 {[%emt 0:01:31]} R8c7 {[%emt 0:01:51]} 32. R4d3 {[%emt 0:00:31]} Nd7 {[%emt 0:00:22]} 33. Rd4 {[%emt 0:05:06]} Nf6 {[%emt 0:00:14]} 34. Kb3 {[%emt 0:00:50]} Rc8 {[%emt 0:01:20]} 35. R2d3 {[%emt 0:05:09]} R8c7 {[%emt 0:01:30]} 36. Kc2 {[%emt 0:00:19]} Nd7 {[%emt 0:00:39]} 37. Bxd7 {[%emt 0:06:52]} Rxd7 {[%emt 0:00:04]} 38. b3 {[%emt 0:01:00]} Rdc7 {[%emt 0:01:49]} 39. b4 {[%emt 0:01:24]} axb4 {[%emt 0:03:55]} 40. Rxb4 {[%emt 0:00:00]} f6 {[%emt 0:00:00]} 41. Kb3 {[%emt 0:03:13]} Kf7 {[%emt 0:13:39]} 42. Rb6 {[%emt 0:05:26]} Ke8 {[%emt 0:07:50]} 43. Rb4 {[%emt 0:00:25]} Kd8 {[%emt 0:02:25]} 44. c4 {[%emt 0:02:55]} Kd7 {[%emt 0:03:09]} 45. Re3 {[%emt 0:00:27]} Ra5 {[%emt 0:00:56]} 46. Kc3 {[%emt 0:01:18]} Rxd5 {[%emt 0:06:20]} 47. Rxb7 {[%emt 0:01:35]} Rd3+ {[%emt 0:00:21]} 48. Rxd3 {[%emt 0:02:17]} Rxb7 {[%emt 0:00:03]} 49. Rd1 {[%emt 0:05:13]} Kc6 {[%emt 0:00:44]} 50. a5 {[%emt 0:01:09]} e5 {[%emt 0:03:38]} 51. Ra1 {[%emt 0:01:31]} Kc5 {[%emt 0:01:01]} 52. Rd1 {[%emt 0:00:19]} Kc6 {[%emt 0:02:36]} 53. Ra1 {[%emt 0:00:14]} Kc5 {[%emt 0:00:30]} 54. Rd1 {[%emt 0:00:20]} Kc6 {[%emt 0:00:27]} 55. Ra1 {[%emt 0:00:19]} Kc5 {[%emt 0:01:20]} 1/2-1/2

[Event "WYCC 2018 G18"]
[Site "Halkidiki"]
[Date "2018.10.29"]
[Round "10"]
[White "Stashis, Anna"]
[Black "Vlkova, Anezka"]
[Result "1-0"]
[ECO "B22"]
[WhiteElo "1979"]
[BlackElo "1925"]
[Annotator "NA"]
[PlyCount "85"]
[EventDate "2018.10.20"]
[EventType "swiss"]
[EventCountry "GRE"]
[SourceTitle "playchess.com"]
[Source "ChessBase"]
[SourceQuality "1"]
[TimeControl "40/5400+30:1800+30"]

1. e4 {[%emt 0:00:00]} c5 {[%emt 0:00:00]} 2. c3 {[%emt 0:00:00]} g6 {[%emt 0:00:00]} 3. Nf3 {[%emt 0:07:35]} Bg7 {[%emt 0:00:00]} 4. d4 {[%emt 0:03:13]} cxd4 {[%emt 0:00:04]} 5. cxd4 {[%emt 0:00:03]} d5 {[%emt 0:00:27]} 6. e5 {[%emt 0:02:04]} Bg4 {[%emt 0:01:17]} 7. Nc3 {[%emt 0:02:12]} Nc6 {[%emt 0:00:14]} 8. Bb5 {[%emt 0:03:40]} Bxf3 {[%emt 0:01:36] B27: Sicilian: 2 Nf3, unusual Black 2nd moves} (8... Rc8 9. h3 Bxf3 10. Qxf3 e6 11. O-O Nge7 12. Bg5 O-O 13. Bxc6 Rxc6 14. Nb5 a6 15. Nc3 h6 16. Bxe7 Qxe7 {1-0 (63) Nemeth,M (2470)-Jakab,A (2368) Ajka 2018}) 9. Qxf3 {[%emt 0:00:09]} e6 {[%emt 0:00:08]} 10. Bxc6+ {[%emt 0:05:05]} bxc6 {[%emt 0:00:05]} 11. O-O {[%emt 0:00:08]} Nh6 {[%emt 0:01:05]} 12. Na4 $146 {[%emt 0:05:14]} ({Predecessor:} 12. Be3 O-O 13. Rac1 Nf5 14. Na4 Qh4 15. Rfd1 Nxe3 16. fxe3 {½-½ (42) Menzi,N (1887)-Kaya,E (2005) Kemer 2012}) 12... O-O {[%emt 0:00:45]} 13. Nc5 {[%emt 0:05:11]} Nf5 {[%emt 0:02:00]} 14. Qd3 {[%emt 0:02:23]} Qe7 {[%emt 0:03:22]} 15. Re1 {[%emt 0:10:00]} Rab8 {[%emt 0:07:16]} 16. a3 {[%emt 0:04:57]} a5 {[%emt 0:05:00]} 17. b3 {[%emt 0:03:07]} Rb5 {[%emt 0:00:23]} 18. a4 {[%emt 0:02:40]} Rb4 {[%emt 0:01:51]} 19. Bb2 {[%emt 0:00:30]} Rfb8 $16 {[%emt 0:19:32]} (19... Ra8 $14) 20. Bc3 {[%emt 0:03:09]} R8b6 {[%emt 0:01:34]} 21. Bxb4 {[%emt 0:11:20]} Rxb4 {[%emt 0:00:07]} 22. Qc3 {[%emt 0:01:36]} Qa7 {[%emt 0:02:27]} 23. Red1 {[%emt 0:04:08]} Bf8 {[%emt 0:00:27]} 24. Rac1 {[%emt 0:00:34]} h5 {[%emt 0:15:01]} 25. g3 {[%emt 0:07:31]} g5 {[%emt 0:03:18]} 26. Kg2 {[%emt 0:01:05]} Rb8 {[%emt 0:04:16]} 27. Qd3 {[%emt 0:03:29]} g4 {[%emt 0:01:52]} 28. Qc3 {[%emt 0:00:53]} Be7 {[%emt 0:08:47]} 29. Rb1 {[%emt 0:03:59]} Bxc5 {[%emt 0:02:13]} 30. Qxc5 {[%emt 0:02:16]} Qxc5 {[%emt 0:00:08]} 31. dxc5 {[%emt 0:00:02]} Rb4 {[%emt 0:00:05]} 32. h3 Kg7 {[%emt 0:01:22]} 33. Rd3 {[%emt 0:03:34]} Kg6 {[%emt 0:06:52]} 34. hxg4 {[%emt 0:02:00]} hxg4 {[%emt 0:00:11]} 35. f3 {[%emt 0:00:26]} Nh6 {[%emt 0:03:35]} 36. Rf1 {[%emt 0:01:30]} Nf5 {[%emt 0:03:39]} 37. fxg4 {[%emt 0:00:56]} Rxg4 {[%emt 0:00:09]} 38. Rf4 {[%emt 0:00:32]} Kg5 {[%emt 0:03:04]} 39. Rxg4+ {[%emt 0:00:21]} Kxg4 {[%emt 0:00:05]} 40. b4 {[%emt 0:00:00]} axb4 {[%emt 0:00:00]} 41. Rb3 {[%emt 0:07:52]} Ne7 {[%emt 0:08:58]} 42. Rxb4+ {[%emt 0:01:11]} Kf5 {[%emt 0:00:05]} 43. Rb7 {[%emt 0:00:53]} 1-0

[Event "WYCC 2018 G18"]
[Site "Halkidiki"]
[Date "2018.10.29"]
[Round "10"]
[White "Manova, Ivana"]
[Black "Rozman, Monika"]
[Result "1/2-1/2"]
[ECO "B23"]
[WhiteElo "1951"]
[BlackElo "2141"]
[Annotator "NA"]
[PlyCount "85"]
[EventDate "2018.10.20"]
[EventType "swiss"]
[EventCountry "GRE"]
[SourceTitle "playchess.com"]
[Source "ChessBase"]
[SourceQuality "1"]
[TimeControl "40/5400+30:1800+30"]

1. e4 {[%emt 0:00:00]} c5 {[%emt 0:00:00]} 2. Nc3 {[%emt 0:00:00]} a6 {[%emt 0:00:00]} 3. g3 {[%emt 0:00:04]} b5 {[%emt 0:00:00]} 4. Bg2 {[%emt 0:00:11]} Bb7 {[%emt 0:00:00]} 5. d3 {[%emt 0:00:32]} e6 {[%emt 0:00:06]} 6. Nf3 {[%emt 0:00:57]} Nc6 {[%emt 0:05:30]} 7. O-O {[%emt 0:01:16]} Be7 {[%emt 0:01:22]} 8. e5 {[%emt 0:12:28]} Qc7 {[%emt 0:02:28]} 9. Re1 {[%emt 0:06:04]} h5 {[%emt 0:01:33]} 10. h3 {[%emt 0:09:25]} Nh6 {[%emt 0:03:37]} 11. Bxh6 {[%emt 0:04:22]} Rxh6 {[%emt 0:01:16]} 12. d4 {[%emt 0:00:58]} cxd4 {[%emt 0:12:58]} 13. Nxd4 {[%emt 0:01:56]} O-O-O {[%emt 0:08:50]} 14. Nxc6 {[%emt 0:16:48]} Bxc6 {[%emt 0:10:13]} 15. Qd4 {[%emt 0:08:26]} Bxg2 {[%emt 0:04:37]} 16. Kxg2 {[%emt 0:00:34]} d6 {[%emt 0:00:50]} 17. Qf4 {[%emt 0:12:40]} dxe5 {[%emt 0:04:18]} 18. Qxf7 {[%emt 0:01:42]} Rf8 {[%emt 0:00:56]} 19. Qxg7 {[%emt 0:00:32]} Rxf2+ {[%emt 0:00:51]} 20. Kh1 {[%emt 0:02:40]} Bf8 {[%emt 0:18:02]} 21. Qxc7+ {[%emt 0:04:02]} Kxc7 {[%emt 0:00:05]} 22. Rxe5 {[%emt 0:04:40]} Rxc2 {[%emt 0:05:50]} 23. Re2 {[%emt 0:05:02]} Rxe2 {[%emt 0:00:25]} 24. Nxe2 {[%emt 0:00:01]} e5 {[%emt 0:03:29]} 25. Nc3 {[%emt 0:03:11]} Kd7 {[%emt 0:02:17]} 26. Kg2 {[%emt 0:00:58]} Bc5 {[%emt 0:01:33]} 27. Ne4 {[%emt 0:01:09]} Bd4 {[%emt 0:00:24]} 28. Rd1 {[%emt 0:01:29]} Rc6 {[%emt 0:00:47]} 29. Rd2 {[%emt 0:00:42]} Ke6 {[%emt 0:00:41]} 30. Kf3 {[%emt 0:00:32]} Rc1 {[%emt 0:00:23]} 31. Rg2 {[%emt 0:01:29]} Rf1+ {[%emt 0:00:50]} 32. Ke2 {[%emt 0:00:25]} Ra1 {[%emt 0:01:33]} 33. Kd3 {[%emt 0:00:36]} Rxa2 {[%emt 0:00:53]} 34. g4 {[%emt 0:00:18]} hxg4 {[%emt 0:00:22]} 35. hxg4 {[%emt 0:00:19]} Rxb2 {[%emt 0:04:50]} 36. Rxb2 {[%emt 0:00:45]} Bxb2 {[%emt 0:00:03]} 37. Nc5+ {[%emt 0:00:39]} Kf6 {[%emt 0:02:24]} 38. Nxa6 {[%emt 0:00:30]} Kg5 {[%emt 0:00:09]} 39. Nc7 {[%emt 0:00:30]} b4 {[%emt 0:01:43]} 40. Ke4 {[%emt 0:00:00]} Kxg4 {[%emt 0:00:00]} 41. Na6 {[%emt 0:00:46]} Bc3 {[%emt 0:01:08]} 42. Nxb4 {[%emt 0:00:05]} Bxb4 {[%emt 0:00:17]} 43. Kxe5 1/2-1/2

[Event "WYCC 2018 G18"]
[Site "Halkidiki"]
[Date "2018.10.29"]
[Round "10"]
[White "Prakapuk, Vera"]
[Black "Egyed, Judit"]
[Result "1/2-1/2"]
[ECO "B53"]
[WhiteElo "1949"]
[BlackElo "2089"]
[Annotator "NA"]
[PlyCount "95"]
[EventDate "2018.10.20"]
[EventType "swiss"]
[EventCountry "GRE"]
[SourceTitle "playchess.com"]
[Source "ChessBase"]
[SourceQuality "1"]
[TimeControl "40/5400+30:1800+30"]

1. e4 {[%emt 0:00:00]} c5 {[%emt 0:00:00]} 2. Nf3 {[%emt 0:00:00]} d6 {[%emt 0:00:00]} 3. d4 {[%emt 0:00:24]} cxd4 {[%emt 0:00:00]} 4. Qxd4 {[%emt 0:00:02]} Nc6 {[%emt 0:00:00]} 5. Bb5 {[%emt 0:00:04]} Bd7 {[%emt 0:00:05]} 6. Bxc6 {[%emt 0:00:04]} Bxc6 {[%emt 0:00:04]} 7. Nc3 {[%emt 0:00:06]} Nf6 {[%emt 0:00:04]} 8. Bg5 {[%emt 0:00:09]} e6 {[%emt 0:00:05]} 9. O-O-O {[%emt 0:00:13]} Be7 {[%emt 0:00:06]} 10. Rhe1 {[%emt 0:00:14]} O-O {[%emt 0:00:08]} 11. Kb1 {[%emt 0:01:07]} Qc7 {[%emt 0:03:21]} 12. Qd2 {[%emt 0:03:44]} Rfd8 {[%emt 0:00:20]} 13. Nd4 {[%emt 0:00:22]} Rab8 {[%emt 0:00:35]} 14. f3 {[%emt 0:01:08]} b5 {[%emt 0:00:11]} 15. g4 {[%emt 0:01:08]} b4 {[%emt 0:00:41]} 16. Nce2 {[%emt 0:00:05]} a5 {[%emt 0:00:34]} 17. Ng3 {[%emt 0:00:37]} Ba8 {[%emt 0:01:54]} 18. Nh5 {[%emt 0:06:34]} Ne8 {[%emt 0:00:08]} 19. Bxe7 {[%emt 0:03:11]} Qxe7 {[%emt 0:00:17]} 20. f4 {[%emt 0:02:59]} a4 {[%emt 0:20:04]} 21. f5 {[%emt 0:01:46]} g6 {[%emt 0:07:50]} 22. Nf4 {[%emt 0:22:19]} e5 {[%emt 0:05:02]} 23. Nd5 {[%emt 0:00:32]} Qa7 {[%emt 0:01:48]} 24. Nf3 {[%emt 0:03:13]} Bxd5 {[%emt 0:02:51]} 25. exd5 {[%emt 0:03:18]} Rdc8 {[%emt 0:03:00]} 26. Rc1 {[%emt 0:12:38]} Qc5 {[%emt 0:06:50]} 27. Ng5 {[%emt 0:07:21]} Rb5 {[%emt 0:10:31]} 28. fxg6 {[%emt 0:06:36]} fxg6 {[%emt 0:02:09]} 29. Rf1 {[%emt 0:04:04]} Qxd5 {[%emt 0:07:44]} 30. Qf2 {[%emt 0:00:09]} Ng7 {[%emt 0:00:42]} 31. Nf7 {[%emt 0:00:35]} Nf5 {[%emt 0:04:45]} 32. gxf5 {[%emt 0:00:46]} Qxf7 {[%emt 0:00:12]} 33. fxg6 {[%emt 0:09:54]} Qxf2 {[%emt 0:00:08]} 34. gxh7+ {[%emt 0:00:05]} Kxh7 {[%emt 0:00:02]} 35. Rxf2 {[%emt 0:00:05]} e4 {[%emt 0:01:58]} 36. Rf4 {[%emt 0:01:23]} Re8 {[%emt 0:04:35]} 37. Rg1 {[%emt 0:03:22]} Rh5 {[%emt 0:00:10]} 38. h4 {[%emt 0:02:12]} d5 {[%emt 0:06:28]} 39. Kc1 {[%emt 0:00:30]} Ree5 {[%emt 0:06:03]} 40. Rf7+ {[%emt 0:00:00]} Kh8 {[%emt 0:00:00]} 41. Rb7 {[%emt 0:06:46]} b3 {[%emt 0:02:08]} 42. axb3 {[%emt 0:00:13]} axb3 {[%emt 0:00:05]} 43. Rxb3 {[%emt 0:00:07]} Rxh4 {[%emt 0:00:26]} 44. c3 {[%emt 0:05:48]} e3 {[%emt 0:11:34]} 45. Rb6 {[%emt 0:01:21]} Rh2 {[%emt 0:04:20]} 46. Rd6 {[%emt 0:01:21]} Rf5 {[%emt 0:07:36]} 47. Re6 {[%emt 0:06:27]} Rff2 {[%emt 0:02:02]} 48. Rxe3 {[%emt 0:02:42]} 1/2-1/2

[Event "WYCC 2018 G18"]
[Site "Halkidiki"]
[Date "2018.10.29"]
[Round "10"]
[White "Koehler, Inken"]
[Black "Represa Perez, Mireya"]
[Result "0-1"]
[ECO "B54"]
[WhiteElo "1934"]
[BlackElo "2151"]
[Annotator "NA"]
[PlyCount "112"]
[EventDate "2018.10.20"]
[EventType "swiss"]
[EventCountry "GRE"]
[SourceTitle "playchess.com"]
[Source "ChessBase"]
[SourceQuality "1"]
[TimeControl "40/5400+30:1800+30"]

1. e4 c5 2. Nf3 d6 3. d4 cxd4 4. Nxd4 Nf6 5. f3 e5 6. Nb3 Be6 7. c4 Nbd7 8. Be3 Rc8 9. Na3 a6 10. Be2 b5 11. cxb5 axb5 12. Nxb5 d5 13. O-O d4 14. Bf2 Nh5 15. Rc1 Nf4 16. Re1 Be7 17. Bf1 O-O 18. Rxc8 Qxc8 19. Qc1 Qb8 20. Qb1 Bg5 21. Kh1 Rd8 22. Rd1 g6 23. Be1 Rc8 24. Rc1 Rxc1 25. Nxc1 Nc5 26. Bb4 Qb6 27. Bxc5 Qxc5 28. Nd3 Nxd3 29. Qxd3 Bxa2 30. Na3 Qc1 31. Qb5 h6 32. Qe2 Bb3 33. h3 Qf4 34. Qd3 Qg3 35. f4 Bxf4 36. Qxg3 Bxg3 37. Bd3 Kf8 38. Kg1 Ke7 39. Kf1 Kd6 40. Nc4+ Kc5 41. Na5 Be6 42. Ke2 f6 43. Nb7+ Kb4 44. Nd8 Bg8 45. Nc6+ Kb3 46. Ne7 Bf7 47. Kf3 Bf4 48. g3 Bc1 49. Nd5 Bxd5 50. exd5 f5 51. Bb5 Bxb2 52. g4 Kc3 53. gxf5 gxf5 54. Bd7 e4+ 55. Kf2 Kd2 56. Kf1 e3 0-1

[Event "WYCC 2018 G18"]
[Site "Halkidiki"]
[Date "2018.10.29"]
[Round "10"]
[White "Belluire, Beatrice"]
[Black "Muratova, Saltanat"]
[Result "0-1"]
[ECO "B31"]
[WhiteElo "1931"]
[BlackElo "1859"]
[Annotator "NA"]
[PlyCount "64"]
[EventDate "2018.10.20"]
[EventType "swiss"]
[EventCountry "GRE"]
[SourceTitle "playchess.com"]
[Source "ChessBase"]
[SourceQuality "1"]
[TimeControl "40/5400+30:1800+30"]

1. e4 {[%emt 0:00:00]} c5 {[%emt 0:00:00]} 2. Nf3 {[%emt 0:00:00]} Nc6 {[%emt 0:00:00]} 3. Bb5 {[%emt 0:00:00]} g6 {[%emt 0:00:04]} 4. Bxc6 {[%emt 0:00:00]} bxc6 {[%emt 0:00:11]} 5. O-O {[%emt 0:00:01]} Bg7 {[%emt 0:00:05]} 6. Re1 {[%emt 0:00:20]} Rb8 {[%emt 0:00:10]} 7. c3 {[%emt 0:00:15]} Nf6 {[%emt 0:00:06]} 8. e5 {[%emt 0:07:08]} Nd5 {[%emt 0:00:10]} 9. c4 {[%emt 0:00:31]} Nc7 {[%emt 0:00:05]} 10. Nc3 {[%emt 0:05:13]} O-O {[%emt 0:02:04]} 11. d4 {[%emt 0:06:28]} cxd4 {[%emt 0:00:15]} 12. Qxd4 {[%emt 0:01:06]} Ne6 {[%emt 0:31:35]} 13. Qxa7 Rb7 {[%emt 0:05:54]} 14. Qe3 {[%emt 0:11:50]} d5 {[%emt 0:00:13]} 15. exd6 {[%emt 0:14:45]} exd6 {[%emt 0:01:30]} 16. Qd2 {[%emt 0:03:39]} Rd7 {[%emt 0:12:49]} 17. b3 {[%emt 0:00:24]} Bb7 {[%emt 0:04:34]} 18. Bb2 {[%emt 0:02:03]} d5 {[%emt 0:00:12]} 19. Ne5 {[%emt 0:15:59]} Bxe5 {[%emt 0:14:23]} 20. Rxe5 {[%emt 0:00:07]} dxc4 {[%emt 0:00:03]} 21. Qh6 {[%emt 0:09:51]} Rd2 {[%emt 0:02:09]} 22. Re2 {[%emt 0:01:32]} Rxe2 {[%emt 0:00:51]} 23. Nxe2 {[%emt 0:00:03]} Qd3 {[%emt 0:00:37]} 24. Re1 {[%emt 0:12:18]} Rd8 {[%emt 0:03:43]} 25. Ng3 {[%emt 0:01:37]} c3 {[%emt 0:03:22]} 26. Bc1 {[%emt 0:02:21]} c2 {[%emt 0:01:41]} 27. f3 {[%emt 0:02:25]} Qd1 {[%emt 0:02:31]} 28. Qe3 {[%emt 0:01:39]} Nc5 {[%emt 0:01:55]} 29. Ne4 {[%emt 0:01:06]} Qxe1+ {[%emt 0:02:37]} 30. Qxe1 {[%emt 0:00:04]} Rd1 {[%emt 0:00:07]} 31. Nxc5 {[%emt 0:02:11]} Rxe1+ {[%emt 0:00:06]} 32. Kf2 {[%emt 0:00:02]} Rxc1 {[%emt 0:00:07]} 0-1